lending/lending_fUSD_20240705
["ID","MTS","AMOUNT","RATE_DAILY","PERIOD"]
[331296219,1720195842722,-150.0,0.00014846,2]
[331296221,1720195842732,-150.0,0.00014847,2]
[331296223,1720195842742,-155.0,0.00014849,2]
[331296225,1720195842752,-155.0,0.00014849,2]
[331296227,1720195842762,-150.0,0.00014851,2]
[331296229,1720195842772,-150.0,0.00014852,2]
[331296231,1720195842782,-1500.0,0.00014852,2]
[331296233,1720195842791,-150.0,0.00014853,2]
[331296235,1720195842801,-150.0,0.00014853,2]
[331296237,1720195842811,-150.0,0.00014856,2]
[331296239,1720195842821,-150.0,0.00014858,2]
[331296241,1720195842836,-150.0,0.00014861,2]
[331296243,1720195842845,-150.0,0.00014861,2]
[331296245,1720195842856,-150.0,0.00014862,2]
[331296247,1720195842866,-1500.0,0.00014865,2]
[331296249,1720195842876,-150.0,0.00014867,2]
[331296251,1720195842885,-150.0,0.00014872,2]
[331296253,1720195842898,-150.0,0.00014873,2]
[331296255,1720195842908,-150.0,0.00014874,2]
[331296257,1720195842918,-150.0,0.00014874,2]
[331296259,1720195842927,-150.0,0.00014879,2]
[331296261,1720195842936,-150.0,0.00014881,2]
[331296263,1720195842946,-150.0,0.00014882,2]
[331296265,1720195842956,-150.0,0.00014886,2]
[331296267,1720195842966,-150.0,0.00014892,2]
[331296269,1720195842976,-150.0,0.00014892,2]
[331296271,1720195842985,-150.0,0.00014894,2]
[331296273,1720195842995,-150.0,0.00014895,2]
[331296275,1720195843004,-150.0,0.00014901,2]
[331296277,1720195843014,-150.0,0.00014901,2]
[331296279,1720195843023,-150.0,0.00014904,2]
[331296281,1720195843033,-150.0,0.00014904,2]
[331296283,1720195843042,-150.0,0.00014905,2]
[331296285,1720195843051,-150.0,0.00014905,2]
[331296287,1720195843063,-150.0,0.00014906,2]
[331296288,1720195843076,-150.0,0.00014908,2]
[331296290,1720195843088,-1500.0,0.00014908,2]
[331296293,1720195843098,-150.0,0.00014916,2]
[331296294,1720195843109,-150.0,0.00014918,2]
[331296297,1720195843119,-150.0,0.00014921,2]
[331296299,1720195843128,-150.0,0.00014921,2]
[331296301,1720195843139,-150.0,0.00014923,2]
[331296303,1720195843150,-150.0,0.00014927,2]
[331296304,1720195843160,-150.0,0.00014931,2]
[331296307,1720195843170,-150.0,0.00014934,2]
[331296309,1720195843179,-150.0,0.00014939,2]
[331296311,1720195843190,-150.0,0.0001494,2]
[331296313,1720195843199,-150.0,0.0001494,2]
[331296315,1720195843208,-150.0,0.00014941,2]
[331296317,1720195843219,-150.0,0.00014953,2]
[331296318,1720195843229,-150.0,0.00014953,2]
[331296321,1720195843238,-1500.0,0.00014957,2]
[331296322,1720195843248,-240.0,0.00014973,2]
[331296325,1720195843258,-389.0,0.00014986,2]
[331296327,1720195843268,-274.12531633,0.00014999,2]
[331296329,1720195843278,-5112.89815582,0.00014999,2]
[331296331,1720195843287,-655653.54736296,0.00015,2]
[331296333,1720195843296,-56676.06659581,0.00015,2]
[331296335,1720195843306,-625.55024867,0.00015,2]
[331296337,1720195843315,-3969.29324801,0.00015,2]
[331296339,1720195843327,-76263.0,0.00015,2]
[331296341,1720195843337,-24653.95106231,0.00015,2]
[331296343,1720195843346,-169.85882371,0.00015,2]
[331296345,1720195843355,-580431.77759133,0.00015,2]
[331296347,1720195843364,-166.827155,0.00015068,2]
[331296349,1720195843374,-587.0,0.00015128,2]
[331296350,1720195843383,-11484.0,0.000154,3]
[331296352,1720195843392,-3611.30193234,0.00015535,2]
[331296354,1720195843402,-597.28,0.00015543,2]
[331296357,1720195843411,-11484.0,0.000158,5]
[331296359,1720195843420,-167.0,0.00015831,2]
[331296360,1720195843429,-166.827155,0.0001589,2]
[331296363,1720195843439,-1339.30572238,0.00016315,2]
[331296365,1720195843448,-3611.30193234,0.00016352,2]
[331296367,1720195843458,-167.0,0.00016354,2]
[331296368,1720195843467,-384.0,0.0001637,2]
[331296370,1720195843477,-1000.0,0.00016415,2]
[331296372,1720195843486,-271.5,0.00016438,2]
[331296375,1720195843496,-1759.20948392,0.00016566,2]
[331296377,1720195843505,-823.0,0.00016598,2]
[331296379,1720195843515,-166.827155,0.00016712,2]
[331296380,1720195843525,-1548.0,0.000168,3]
[331296382,1720195843536,-167.0,0.00016876,2]
[331296384,1720195843548,-313.81070943,0.00017,2]
[331296386,1720195843558,-1346.0,0.00017,2]
[331296388,1720195843568,-271.5,0.00017034,2]
[331296390,1720195843582,-3611.30193234,0.00017169,2]
[331296392,1720195843591,-1300.0,0.00017224,2]
[331296394,1720195843601,-167.0,0.00017399,2]
[331296396,1720195843610,-1547.58956559,0.00017444,2]
[331296398,1720195843620,-166.827155,0.00017534,2]
[331296412,1720195843733,-271.5,0.00017629,2]
[331296414,1720195843743,-597.28,0.00017807,2]
[331296416,1720195843752,-167.0,0.00017921,2]
[331296418,1720195843762,-3611.30193234,0.00017986,2]
[331296420,1720195843772,-744.73808353,0.00018,2]
[331296422,1720195843781,-1116.20768437,0.00018,2]
[331296424,1720195843791,-10534.4356567,0.00018,2]
[331296426,1720195843800,-370.27430286,0.00018,2]
[331296428,1720195843809,-1000.0,0.00018056,2]
[331296430,1720195843819,-1669.50286095,0.000181,2]
[331296432,1720195843830,-1152.0,0.0001821,2]
[331296434,1720195843840,-271.5,0.00018225,2]
[331296435,1720195843850,-166.827155,0.00018356,2]
[331296436,1720195843860,-167.0,0.00018444,2]
[331296437,1720195843871,-155.31474536,0.00018476,2]
[331296438,1720195843880,-10000.0,0.00018787,2]
[331296439,1720195843890,-3611.30193234,0.00018804,2]
[331296440,1720195843900,-271.5,0.00018821,2]
[331296441,1720195843909,-164.81,0.00018849,30]
[331296442,1720195843918,-38243.0,0.000189,2]
[331296443,1720195843927,-5177.0,0.000189,2]
[331296444,1720195843937,-1663.0,0.000189,2]
[331296445,1720195843947,-1199.0,0.000189,2]
[331296446,1720195843957,-291.0,0.000189,2]
[331296448,1720195843967,-1070.0,0.000189,2]
[331296450,1720195843976,-152.6,0.000189,2]
[331296452,1720195843986,-152.6,0.000189,2]
[331296454,1720195843995,-152.6,0.000189,2]
[331296456,1720195844005,-152.6,0.000189,2]
[331296458,1720195844015,-152.6,0.000189,2]
[331296460,1720195844024,-152.6,0.000189,2]
[331296462,1720195844033,-152.6,0.000189,2]
[331296464,1720195844042,-152.6,0.000189,2]
[331296466,1720195844052,-152.6,0.000189,2]
[331296468,1720195844062,-152.6,0.000189,2]
[331296470,1720195844072,-152.6,0.000189,2]
[331296472,1720195844087,-152.6,0.000189,2]
[331296474,1720195844097,-152.6,0.000189,2]
[331296476,1720195844108,-152.6,0.000189,2]
[331296478,1720195844118,-152.6,0.000189,2]
[331296480,1720195844127,-152.6,0.000189,2]
[331296482,1720195844137,-152.6,0.000189,2]
[331296484,1720195844148,-152.6,0.000189,2]
[331296486,1720195844157,-152.6,0.000189,2]
[331296488,1720195844167,-152.6,0.000189,2]
[331296490,1720195844176,-744.0,0.00019,2]
[331296492,1720195844185,-1011.98407141,0.00019,2]
[331296494,1720195844195,-5000.0,0.00019,2]
[331296496,1720195844204,-815.56043739,0.00019,2]
[331296498,1720195844213,-300.0,0.00019,2]
[331296500,1720195844222,-250.0,0.00019178,2]
[331296502,1720195844231,-166.827155,0.00019178,2]
[331296504,1720195844240,-155.0,0.0001935,2]
[331296506,1720195844250,-155.0,0.0001935,2]
[331296508,1720195844259,-271.5,0.00019416,2]
[331296510,1720195844268,-11898.93984648,0.000196,2]
[331296512,1720195844277,-3611.30193234,0.00019621,2]
[331296514,1720195844288,-1000.0,0.00019697,2]
[331296516,1720195844298,-152.6,0.0001975,2]
[331296518,1720195844307,-1655.0,0.0001976,2]
[331296520,1720195844317,-1830.0,0.0001976,2]
[331296522,1720195844327,-1250.0,0.0001976,2]
[331296524,1720195844336,-360.939,0.0001976,2]
[331296526,1720195844346,-619.0,0.0001976,2]
[331296528,1720195844355,-449.0,0.0001976,2]
[331296530,1720195844364,-444.0,0.0001976,2]
[331296532,1720195844374,-809.0,0.0001976,2]
[331296534,1720195844383,-150.736,0.0001976,2]
[331296536,1720195844392,-2427.626,0.0001976,2]
[331296538,1720195844402,-1313.093,0.0001976,2]
[331296540,1720195844411,-205.416,0.0001976,2]
[331296542,1720195844420,-3223.999,0.0001976,2]
[331296544,1720195844430,-547.0,0.0001976,2]
[331296546,1720195844439,-1998.826,0.0001976,2]
[331296548,1720195844448,-151.0,0.0001976,2]
[331296550,1720195844457,-277.990339,0.0001976,2]
[331296552,1720195844466,-151.0,0.0001976,2]
[331296554,1720195844475,-151.0,0.0001976,2]
[331296556,1720195844486,-151.0,0.0001976,2]
[331296558,1720195844495,-151.0,0.0001976,2]
[331296560,1720195844504,-318.809361,0.0001976,2]
[331296562,1720195844514,-318.809361,0.0001976,2]
[331296564,1720195844523,-151.0,0.0001976,2]
[331296566,1720195844531,-151.0,0.0001976,2]
[331296568,1720195844540,-151.0,0.0001976,2]
[331296570,1720195844550,-208.575726,0.0001976,2]
[331296572,1720195844559,-208.575726,0.0001976,2]
[331296574,1720195844569,-151.0,0.0001976,2]
[331296576,1720195844580,-151.0,0.0001976,2]
[331296578,1720195844589,-151.0,0.0001976,2]
[331296580,1720195844599,-151.0,0.0001976,2]
[331296582,1720195844608,-151.0,0.0001976,2]
[331296584,1720195844617,-151.0,0.0001976,2]
[331296586,1720195844626,-151.0,0.0001976,2]
[331296588,1720195844635,-151.0,0.0001976,2]
[331296590,1720195844645,-151.0,0.0001976,2]
[331296592,1720195844655,-151.0,0.0001976,2]
[331296594,1720195844664,-151.0,0.0001976,2]
[331296597,1720195844673,-151.0,0.0001976,2]
[331296600,1720195844683,-151.0,0.0001976,2]
[331296602,1720195844692,-151.0,0.0001976,2]
[331296604,1720195844701,-151.0,0.0001976,2]
[331296608,1720195844711,-151.0,0.0001976,2]
[331296611,1720195844721,-151.0,0.0001976,2]
[331296613,1720195844730,-151.0,0.0001976,2]
[331296617,1720195844740,-151.0,0.0001976,2]
[331296619,1720195844749,-151.0,0.0001976,2]
[331296621,1720195844759,-151.0,0.0001976,2]
[331296623,1720195844769,-204.133716,0.0001976,2]
[331296625,1720195844779,-204.133716,0.0001976,2]
[331296627,1720195844789,-684.255836,0.0001976,2]
[331296628,1720195844798,-684.255836,0.0001976,2]
[331296629,1720195844808,-201.187176,0.0001976,2]
[331296630,1720195844818,-201.187176,0.0001976,2]
[331296631,1720195844828,-170.510906,0.0001976,2]
[331296632,1720195844838,-151.0,0.0001976,2]
[331296633,1720195844848,-170.510906,0.0001976,2]
[331296634,1720195844858,-151.0,0.0001976,2]
[331296635,1720195844867,-151.0,0.0001976,2]
[331296636,1720195844876,-151.0,0.0001976,2]
[331296637,1720195844886,-1273.685163,0.0001976,2]
[331296638,1720195844895,-1273.685163,0.0001976,2]
[331296639,1720195844905,-152.467529,0.0001976,2]
[331296640,1720195844915,-151.0,0.0001976,2]
[331296641,1720195844924,-364.259432,0.0001976,2]
[331296643,1720195844934,-364.259432,0.0001976,2]
[331296646,1720195844944,-265.37674,0.0001976,2]
[331296649,1720195844956,-151.0,0.0001976,2]
[331296651,1720195844967,-265.37674,0.0001976,2]
[331296655,1720195844977,-151.0,0.0001976,2]
[331296657,1720195844987,-151.0,0.0001976,2]
[331296660,1720195844998,-151.0,0.0001976,2]
[331296662,1720195845008,-338.40173994,0.0001979,7]
[331296663,1720195845018,-152.6,0.0001979,2]
[331296665,1720195845028,-152.6,0.0001979,2]
[331296667,1720195845037,-151.0,0.000198,2]
[331296668,1720195845047,-318.809361,0.000198,2]
[331296670,1720195845057,-318.809361,0.000198,2]
[331296672,1720195845072,-153.859601,0.000198,2]
[331296673,1720195845087,-153.859601,0.000198,2]
[331296675,1720195845096,-151.0,0.000198,2]
[331296676,1720195845108,-151.0,0.000198,2]
[331296678,1720195845118,-208.575726,0.000198,2]
[331296680,1720195845129,-151.0,0.000198,2]
[331296681,1720195845140,-208.575726,0.000198,2]
[331296683,1720195845152,-151.0,0.000198,2]
[331296685,1720195845163,-151.0,0.000198,2]
[331296686,1720195845173,-151.0,0.000198,2]
[331296688,1720195845184,-151.0,0.000198,2]
[331296690,1720195845194,-151.0,0.000198,2]
[331296692,1720195845204,-151.0,0.000198,2]
[331296694,1720195845214,-151.0,0.000198,2]
[331296695,1720195845224,-151.0,0.000198,2]
[331296703,1720195845334,-151.0,0.000198,2]
[331296705,1720195845344,-151.0,0.000198,2]
[331296707,1720195845354,-151.0,0.000198,2]
[331296708,1720195845367,-151.0,0.000198,2]
[331296710,1720195845376,-151.0,0.000198,2]
[331296711,1720195845387,-162.537042,0.000198,2]
[331296712,1720195845397,-156.793319,0.000198,2]
[331296713,1720195845406,-151.0,0.000198,2]
[331296714,1720195845416,-151.0,0.000198,2]
[331296716,1720195845425,-151.0,0.000198,2]
[331296718,1720195845435,-286.9,0.000198,2]
[331296720,1720195845445,-151.0,0.000198,2]
[331296722,1720195845455,-151.0,0.000198,2]
[331296724,1720195845465,-204.133716,0.000198,2]
[331296726,1720195845475,-204.133716,0.000198,2]
[331296728,1720195845486,-763.875433,0.000198,2]
[331296730,1720195845496,-763.875433,0.000198,2]
[331296731,1720195845506,-151.0,0.000198,2]
[331296732,1720195845515,-684.255836,0.000198,2]
[331296733,1720195845525,-151.0,0.000198,2]
[331296734,1720195845535,-221.28589,0.000198,2]
[331296735,1720195845544,-684.255836,0.000198,2]
[331296736,1720195845553,-151.0,0.000198,2]
[331296737,1720195845563,-221.28589,0.000198,2]
[331296738,1720195845573,-151.0,0.000198,2]
[331296739,1720195845584,-151.0,0.000198,2]
[331296740,1720195845593,-212.750336,0.000198,2]
[331296741,1720195845602,-212.750336,0.000198,2]
[331296742,1720195845611,-201.187176,0.000198,2]
[331296743,1720195845621,-201.187176,0.000198,2]
[331296744,1720195845631,-170.510906,0.000198,2]
[331296745,1720195845640,-151.0,0.000198,2]
[331296746,1720195845650,-170.510906,0.000198,2]
[331296747,1720195845659,-261.924537,0.000198,2]
[331296748,1720195845668,-151.0,0.000198,2]
[331296749,1720195845678,-151.0,0.000198,2]
[331296750,1720195845688,-1273.685163,0.000198,2]
[331296751,1720195845697,-1273.685163,0.000198,2]
[331296752,1720195845707,-292726.739323,0.000198,3]
[331296753,1720195845717,-151.0,0.000198,2]
[331296754,1720195845726,-364.259432,0.000198,2]
[331296755,1720195845735,-364.259432,0.000198,2]
[331296756,1720195845745,-265.37674,0.000198,2]
[331296757,1720195845755,-188.401152,0.000198,2]
[331296759,1720195845765,-265.37674,0.000198,2]
[331296761,1720195845774,-151.0,0.000198,2]
[331296763,1720195845783,-151.0,0.000198,2]
[331296765,1720195845793,-151.0,0.000198,2]
[331296767,1720195845803,-152.6,0.0001989,2]
[331296769,1720195845812,-152.6,0.0001989,2]
[331296771,1720195845821,-1454.1131375,0.000199,2]
[331296773,1720195845833,-151.0,0.000199,2]
[331296775,1720195845843,-151.0,0.000199,2]
[331296777,1720195845852,-151.0,0.000199,2]
[331296779,1720195845861,-151.0,0.000199,2]
[331296781,1720195845871,-151.0,0.000199,2]
[331296783,1720195845883,-318.809361,0.000199,2]
[331296785,1720195845893,-318.809361,0.000199,2]
[331296787,1720195845902,-153.859601,0.000199,2]
[331296789,1720195845912,-153.859601,0.000199,2]
[331296791,1720195845921,-151.0,0.000199,2]
[331296793,1720195845931,-151.0,0.000199,2]
[331296794,1720195845940,-151.0,0.000199,2]
[331296795,1720195845950,-208.575726,0.000199,2]
[331296796,1720195845960,-208.575726,0.000199,2]
[331296797,1720195845969,-151.0,0.000199,2]
[331296798,1720195845978,-151.0,0.000199,2]
[331296799,1720195845988,-151.0,0.000199,2]
[331296800,1720195845998,-151.0,0.000199,2]
[331296801,1720195846007,-151.0,0.000199,2]
[331296802,1720195846017,-174.94979,0.000199,2]
[331296803,1720195846036,-151.0,0.000199,2]
[331296804,1720195846055,-282.791073,0.000199,2]
[331296805,1720195846079,-151.0,0.000199,2]
[331296806,1720195846100,-162.975336,0.000199,2]
[331296807,1720195846122,-151.0,0.000199,2]
[331296808,1720195846140,-151.0,0.000199,2]
[331296809,1720195846160,-253.91354,0.000199,2]
[331296810,1720195846179,-151.0,0.000199,2]
[331296811,1720195846193,-151.0,0.000199,2]
[331296812,1720195846210,-313184.806376,0.000199,3]
[331296813,1720195846229,-151.0,0.000199,2]
[331296814,1720195846248,-151.0,0.000199,2]
[331296815,1720195846261,-366.19666682,0.00019964,2]
[331296816,1720195846279,-155.7163574,0.00019964,2]
[331296817,1720195846295,-528.85282997,0.00019964,2]
[331296818,1720195846314,-1193.0,0.00019979,2]
[331296819,1720195846328,-166.827155,0.0002,2]
[331296820,1720195846343,-744.0,0.0002,2]
[331296821,1720195846358,-188.17121959,0.0002,2]
[331296822,1720195846373,-4695.6094165,0.0002,3]
[331296823,1720195846388,-155.22029957,0.0002,3]
[331296824,1720195846402,-1250.0,0.0002,2]
[331296825,1720195846419,-257.0,0.0002,2]
[331296826,1720195846435,-442.08322332,0.0002,2]
[331296827,1720195846449,-442.08322332,0.0002,2]
[331296828,1720195846464,-442.08322332,0.0002,2]
[331296829,1720195846479,-442.08322332,0.0002,2]
[331296830,1720195846494,-442.08322332,0.0002,2]
[331296831,1720195846509,-442.08322332,0.0002,2]
[331296832,1720195846524,-442.08322332,0.0002,2]
[331296833,1720195846539,-442.08322332,0.0002,2]
[331296834,1720195846553,-442.08322332,0.0002,2]
[331296835,1720195846568,-442.08322332,0.0002,2]
[331296836,1720195846584,-271.5,0.00020012,2]
[331296837,1720195846600,-597.28,0.00020071,2]
[331296838,1720195846615,-150.0,0.000201,2]
[331296839,1720195846630,-3611.30193234,0.00020438,2]
[331296840,1720195846645,-491.58526808,0.0002049,2]
[331296841,1720195846659,-794.58614518,0.000205,2]
[331296842,1720195846673,-854.33,0.00020548,2]
[331296843,1720195846687,-271.5,0.00020607,2]
[331296844,1720195846702,-183.602113,0.00020915,2]
[331296845,1720195846716,-181.263873,0.00020915,2]
[331296846,1720195846731,-155.567472,0.00020915,2]
[331296847,1720195846746,-165.645677,0.00020915,2]
[331296848,1720195846761,-349.893061,0.00020915,2]
[331296849,1720195846775,-4616.24,0.00020951,2]
[331296850,1720195846789,-29999.99,0.00020951,2]
[331296851,1720195846806,-228.808255,0.00020951,2]
[331296852,1720195846821,-151.0,0.00020951,2]
[331296853,1720195846837,-151.0,0.00020951,2]
[331296854,1720195846851,-204.133716,0.00020951,2]
[331296855,1720195846866,-204.133716,0.00020951,2]
[331296856,1720195846881,-763.875433,0.00020951,2]
[331296857,1720195846897,-763.875433,0.00020951,2]
[331296858,1720195846911,-151.0,0.00020951,2]
[331296859,1720195846926,-684.255836,0.00020951,2]
[331296860,1720195846941,-151.0,0.00020951,2]
[331296861,1720195846961,-221.28589,0.00020951,2]
[331296862,1720195846975,-684.255836,0.00020951,2]
[331296863,1720195846990,-151.0,0.00020951,2]
[331296864,1720195847004,-221.28589,0.00020951,2]
[331296865,1720195847019,-151.0,0.00020951,2]
[331296866,1720195847035,-151.0,0.00020951,2]
[331296867,1720195847047,-212.750336,0.00020951,2]
[331296868,1720195847057,-212.750336,0.00020951,2]
[331296869,1720195847072,-201.187176,0.00020951,2]
[331296870,1720195847083,-201.187176,0.00020951,2]
[331296871,1720195847095,-170.510906,0.00020951,2]
[331296872,1720195847111,-151.0,0.00020951,2]
[331296873,1720195847317,-170.510906,0.00020951,2]
[331296874,1720195847330,-201.332397,0.00020951,2]
[331296875,1720195847340,-151.0,0.00020951,2]
[331296876,1720195847350,-1273.685163,0.00020951,2]
[331296877,1720195847359,-1273.685163,0.00020951,2]
[331296878,1720195847373,-183.811344,0.00020951,2]
[331296879,1720195847383,-364.259432,0.00020951,2]
[331296880,1720195847392,-265.37674,0.00020951,2]
[331296882,1720195847401,-364.259432,0.00020951,2]
[331296884,1720195847411,-265.37674,0.00020951,2]
[331296886,1720195847421,-151.0,0.00020951,2]
[331296888,1720195847431,-225.33520988,0.00021,2]
[331296890,1720195847440,-744.0,0.00021,2]
[331296892,1720195847450,-13086.73452996,0.00021,3]
[331296894,1720195847460,-2000.0,0.00021,5]
[331296896,1720195847469,-5074.10843489,0.00021,2]
[331296898,1720195847479,-598.83558084,0.00021012,2]
[331296900,1720195847489,-349.893061,0.00021177,2]
[331296902,1720195847499,-271.5,0.00021203,2]
[331296904,1720195847508,-3611.30193234,0.00021255,2]
[331296905,1720195847518,-150.0,0.0002137,2]
[331296907,1720195847528,-150.0,0.0002137,2]
[331296909,1720195847537,-349.893061,0.00021438,2]
[331296910,1720195847547,-155.567472,0.00021438,2]
[331296911,1720195847556,-452.18497949,0.00021531,2]
[331296912,1720195847565,-194.0,0.00021644,2]
[331296913,1720195847577,-357.95,0.00021644,2]
[331296914,1720195847587,-154.74,0.00021644,2]
[331296915,1720195847596,-187.86,0.00021644,2]
[331296916,1720195847606,-157.2,0.00021644,2]
[331296917,1720195847616,-349.893061,0.000217,2]
[331296918,1720195847625,-271.5,0.00021799,2]
[331296919,1720195847635,-327.37681566,0.00021813,2]
[331296921,1720195847644,-14562.397,0.000219,2]
[331296923,1720195847653,-4179.248,0.000219,2]
[331296925,1720195847664,-197.639,0.000219,2]
[331296927,1720195847674,-228.746,0.000219,2]
[331296928,1720195847683,-1070.0,0.000219,2]
[331296930,1720195847693,-174.23,0.00021918,2]
[331296931,1720195847703,-290.37,0.00021918,2]
[331296932,1720195847713,-150.0,0.00021918,2]
[331296933,1720195847723,-151.0,0.00021918,2]
[331296934,1720195847732,-151.0,0.00021918,2]
[331296935,1720195847741,-151.0,0.00021918,2]
[331296936,1720195847756,-151.0,0.00021918,2]
[331296937,1720195847766,-151.0,0.00021918,2]
[331296939,1720195847776,-151.0,0.00021918,2]
[331296941,1720195847786,-151.0,0.00021918,2]
[331296942,1720195847796,-151.0,0.00021918,2]
[331296943,1720195847805,-151.0,0.00021918,2]
[331296944,1720195847815,-150.0,0.00021918,2]
[331296946,1720195847826,-349.893061,0.00021961,2]
[331296948,1720195847836,-155.567472,0.00021961,2]
[331296949,1720195847845,-3000.0,0.00022,5]
[331296950,1720195847856,-744.0,0.00022,2]
[331296951,1720195847865,-793.07193784,0.00022,2]
[331296952,1720195847875,-199.99,0.00022,2]
[331296953,1720195847885,-1000.0,0.00022,2]
[331296954,1720195847895,-1300.0,0.00022,2]
[331296955,1720195847904,-3611.30193234,0.00022073,2]
[331296956,1720195847913,-150.0,0.00022192,2]
[331296957,1720195847922,-150.0,0.00022192,2]
[331296958,1720195847932,-183.96,0.00022192,2]
[331296959,1720195847941,-300.0,0.00022192,2]
[331296960,1720195847952,-2500.0,0.000222,2]
[331296961,1720195847962,-1250.0,0.000222,2]
[331296962,1720195847971,-151.0,0.000222,7]
[331296963,1720195847980,-151.0,0.000222,7]
[331296964,1720195847989,-151.0,0.000222,7]
[331296965,1720195847999,-500.0,0.00022209,2]
[331296966,1720195848009,-500.0,0.00022218,2]
[331296967,1720195848018,-597.28,0.00022335,2]
[331296968,1720195848028,-271.5,0.00022394,2]
[331296969,1720195848038,-1000.8485,0.00022399,2]
[331296970,1720195848048,-396.04763162,0.00022405,2]
[331296971,1720195848057,-450.0,0.00022428,2]
[331296972,1720195848073,-1270.57,0.00022466,2]
[331296973,1720195848087,-500.0,0.00022493,2]
[331296974,1720195848097,-150.0,0.00022495,2]
[331296975,1720195848107,-11683.32736513,0.00022759,2]
[331296976,1720195848117,-309.804,0.0002276,2]
[331296977,1720195848128,-678.353,0.0002276,2]
[331296978,1720195848143,-619.0,0.0002276,2]
[331296979,1720195848153,-449.0,0.0002276,2]
[331296980,1720195848163,-441.0,0.0002276,2]
[331296981,1720195848173,-736.247,0.0002276,2]
[331296982,1720195848183,-151.0,0.0002276,7]
[331296983,1720195848193,-276.493208,0.0002276,7]
[331296984,1720195848203,-151.0,0.0002276,7]
[331296985,1720195848213,-151.0,0.0002276,7]
[331296986,1720195848223,-318.809361,0.0002276,7]
[331296987,1720195848232,-318.809361,0.0002276,7]
[331296988,1720195848242,-151.0,0.0002276,7]
[331296989,1720195848251,-151.0,0.0002276,7]
[331296990,1720195848261,-151.0,0.0002276,7]
[331296991,1720195848270,-208.575726,0.0002276,7]
[331296992,1720195848280,-208.575726,0.0002276,7]
[331296993,1720195848290,-151.0,0.0002276,7]
[331296994,1720195848299,-151.0,0.0002276,7]
[331296995,1720195848309,-151.0,0.0002276,7]
[331296996,1720195848319,-151.0,0.0002276,7]
[331296997,1720195848330,-151.0,0.0002276,7]
[331296998,1720195848340,-151.0,0.0002276,7]
[331296999,1720195848352,-151.0,0.0002276,7]
[331297000,1720195848362,-151.0,0.0002276,7]
[331297001,1720195848373,-151.0,0.0002276,7]
[331297002,1720195848382,-208.65435,0.0002276,7]
[331297003,1720195848392,-150.0,0.00022879,10]
[331297004,1720195848401,-121199.09372618,0.0002288,2]
[331297005,1720195848411,-64066.26673252,0.0002288,2]
[331297006,1720195848421,-151.0,0.0002288,7]
[331297007,1720195848431,-151.0,0.0002288,7]
[331297008,1720195848440,-151.0,0.0002288,7]
[331297009,1720195848450,-318.809361,0.0002288,7]
[331297010,1720195848459,-318.809361,0.0002288,7]